[Event "Titled Tuesday Blitz June 1 2021"]
[White "Samunenkov, Ihor"]
[Black "Timofeev, Artyom"]
[WhiteFideId "14187086"]
[BlackFideId "4140419"]
[WhiteElo "2242"]
[BlackElo "2582"]
[Result "1/2-1/2"]
[Round "10"]
[TimeControl "180+1"]
[Date "2021.06.01"]
[WhiteClock "0:00:09"]
[BlackClock "0:00:44"]

1. d4 {[%clk 0:03:00]}  Nf6 {[%clk 0:02:59]} 2. g3 {[%clk 0:03:00]}  d5 {[%clk 0:02:57]} 3. Nf3 {[%clk 0:03:00]}  g6 {[%clk 0:02:57]} 4. Bg2 {[%clk 0:03:00]}  Bg7 {[%clk 0:02:58]} 5. c4 {[%clk 0:03:01]}  dxc4 {[%clk 0:02:56]} 6. O-O {[%clk 0:02:59]}  c6 {[%clk 0:02:55]} 7. a4 {[%clk 0:02:44]}  O-O {[%clk 0:02:40]} 8. Na3 {[%clk 0:02:43]}  Be6 {[%clk 0:02:40]} 9. Ng5 {[%clk 0:02:25]}  Bf5 {[%clk 0:02:33]} 10. Nxc4 {[%clk 0:02:17]}  h6 {[%clk 0:02:33]} 11. Nf3 {[%clk 0:02:01]}  Be4 {[%clk 0:02:32]} 12. Bf4 {[%clk 0:01:55]}  Nbd7 {[%clk 0:02:30]} 13. Rc1 {[%clk 0:01:53]}  Nd5 {[%clk 0:02:19]} 14. Ncd2 {[%clk 0:01:45]}  Bxf3 {[%clk 0:02:13]} 15. Nxf3 {[%clk 0:01:43]}  Nxf4 {[%clk 0:02:13]} 16. gxf4 {[%clk 0:01:44]}  e6 {[%clk 0:02:14]} 17. Qb3 {[%clk 0:01:40]}  Qb6 {[%clk 0:02:12]} 18. Qxb6 {[%clk 0:01:40]}  axb6 {[%clk 0:02:12]} 19. b3 {[%clk 0:01:37]}  Ra5 {[%clk 0:02:11]} 20. e3 {[%clk 0:01:24]}  g5 {[%clk 0:02:10]} 21. fxg5 {[%clk 0:01:21]}  hxg5 {[%clk 0:02:10]} 22. Nd2 {[%clk 0:01:21]}  b5 {[%clk 0:02:00]} 23. axb5 {[%clk 0:01:21]}  Rxb5 {[%clk 0:02:00]} 24. Ra1 {[%clk 0:01:16]}  Rd8 {[%clk 0:01:53]} 25. Rfd1 {[%clk 0:01:12]}  g4 {[%clk 0:01:51]} 26. Bf1 {[%clk 0:01:05]}  Rb4 {[%clk 0:01:42]} 27. Ra4 {[%clk 0:00:58]}  Bf8 {[%clk 0:01:42]} 28. Be2 {[%clk 0:00:53]}  Nf6 {[%clk 0:01:39]} 29. Nc4 {[%clk 0:00:42]}  Rxb3 {[%clk 0:01:32]} 30. Ne5 {[%clk 0:00:39]}  Rb2 {[%clk 0:01:25]} 31. Kf1 {[%clk 0:00:36]}  Bd6 {[%clk 0:01:19]} 32. Nxg4 {[%clk 0:00:32]}  Nxg4 {[%clk 0:01:15]} 33. Bxg4 {[%clk 0:00:32]}  Bxh2 {[%clk 0:01:16]} 34. Kg2 {[%clk 0:00:27]}  Bd6 {[%clk 0:01:16]} 35. Kf3 {[%clk 0:00:28]}  Kf8 {[%clk 0:01:15]} 36. Rda1 {[%clk 0:00:21]}  Ke7 {[%clk 0:01:15]} 37. Ra8 {[%clk 0:00:21]}  Bb8 {[%clk 0:01:13]} 38. Rh1 {[%clk 0:00:19]}  b5 {[%clk 0:01:10]} 39. Rh7 {[%clk 0:00:18]}  b4 {[%clk 0:00:54]} 40. Bh5 {[%clk 0:00:18]}  Rf8 {[%clk 0:00:54]} 41. Rxf7+ {[%clk 0:00:12]}  Rxf7+ {[%clk 0:00:54]} 42. Bxf7 {[%clk 0:00:13]}  Bd6 {[%clk 0:00:52]} 43. Bg6 {[%clk 0:00:12]}  b3 {[%clk 0:00:52]} 44. Ra7+ {[%clk 0:00:12]}  Kf6 {[%clk 0:00:51]} 45. Be4 {[%clk 0:00:11]}  c5 {[%clk 0:00:50]} 46. dxc5 {[%clk 0:00:10]}  Bxc5 {[%clk 0:00:50]} 47. Rb7 {[%clk 0:00:11]}  Ke5 {[%clk 0:00:48]} 48. Rb5 {[%clk 0:00:09]}  Kd6 {[%clk 0:00:47]} 49. Rb7 {[%clk 0:00:09]}  Ke5 {[%clk 0:00:44]} 50. Rb5 {[%clk 0:00:09]}  Kd6 {[%clk 0:00:44]} 51. Rb7 {[%clk 0:00:09]}  Ke5 {[%clk 0:00:44]} 1/2-1/2


[Site "https://www.chess.com"]

[Event "Titled Tuesday Blitz June 1 2021"]
[White "Sargsyan, Anna M."]
[Black "Titus, Andrew"]
[WhiteFideId "13308130"]
[BlackFideId "2059770"]
[WhiteElo "2263"]
[BlackElo "2044"]
[Result "1/2-1/2"]
[Round "10"]
[TimeControl "180+1"]
[Date "2021.06.01"]
[WhiteClock "0:00:21"]
[BlackClock "0:00:18"]

1. d4 {[%clk 0:03:00]}  d5 {[%clk 0:02:59]} 2. c4 {[%clk 0:03:00]}  e6 {[%clk 0:03:00]} 3. Nf3 {[%clk 0:03:01]}  Nf6 {[%clk 0:02:59]} 4. Nc3 {[%clk 0:03:01]}  Be7 {[%clk 0:02:59]} 5. Bf4 {[%clk 0:03:00]}  O-O {[%clk 0:02:59]} 6. e3 {[%clk 0:03:00]}  Nbd7 {[%clk 0:02:59]} 7. Rc1 {[%clk 0:02:53]}  c5 {[%clk 0:02:58]} 8. cxd5 {[%clk 0:02:52]}  Nxd5 {[%clk 0:02:57]} 9. Nxd5 {[%clk 0:02:51]}  exd5 {[%clk 0:02:58]} 10. dxc5 {[%clk 0:02:46]}  Nxc5 {[%clk 0:02:59]} 11. a3 {[%clk 0:02:42]}  Bg4 {[%clk 0:02:52]} 12. Be2 {[%clk 0:02:40]}  Ne6 {[%clk 0:02:47]} 13. Be5 {[%clk 0:02:38]}  Bxf3 {[%clk 0:02:45]} 14. Bxf3 {[%clk 0:02:37]}  Bf6 {[%clk 0:02:46]} 15. Bxf6 {[%clk 0:02:34]}  Qxf6 {[%clk 0:02:47]} 16. Qxd5 {[%clk 0:02:30]}  Qxb2 {[%clk 0:02:46]} 17. O-O {[%clk 0:02:31]}  Qxa3 {[%clk 0:02:39]} 18. Qxb7 {[%clk 0:02:30]}  Rab8 {[%clk 0:02:37]} 19. Qd5 {[%clk 0:02:07]}  Rfd8 {[%clk 0:02:35]} 20. Qh5 {[%clk 0:02:06]}  g6 {[%clk 0:02:34]} 21. Qe5 {[%clk 0:02:06]}  Qd6 {[%clk 0:02:29]} 22. Qa1 {[%clk 0:02:03]}  Qe7 {[%clk 0:02:25]} 23. Qa5 {[%clk 0:02:01]}  Rbc8 {[%clk 0:02:18]} 24. Ra1 {[%clk 0:02:00]}  Rc7 {[%clk 0:02:18]} 25. h3 {[%clk 0:02:00]}  h5 {[%clk 0:02:13]} 26. Qe5 {[%clk 0:01:52]}  Ng5 {[%clk 0:02:02]} 27. Qg3 {[%clk 0:01:52]}  h4 {[%clk 0:01:58]} 28. Qg4 {[%clk 0:01:52]}  Nxf3+ {[%clk 0:01:52]} 29. Qxf3 {[%clk 0:01:53]}  Kg7 {[%clk 0:01:51]} 30. Ra4 {[%clk 0:01:52]}  Rc5 {[%clk 0:01:49]} 31. Qf4 {[%clk 0:01:40]}  Rh5 {[%clk 0:01:42]} 32. Rfa1 {[%clk 0:01:38]}  Rd7 {[%clk 0:01:42]} 33. Qb8 {[%clk 0:01:35]}  Rh8 {[%clk 0:01:31]} 34. Qb2+ {[%clk 0:01:33]}  f6 {[%clk 0:01:24]} 35. Ra6 {[%clk 0:01:28]}  Rhd8 {[%clk 0:01:22]} 36. Qb3 {[%clk 0:01:19]}  Rc7 {[%clk 0:01:07]} 37. Qa4 {[%clk 0:01:16]}  g5 {[%clk 0:01:00]} 38. Qb5 {[%clk 0:00:48]}  Rdc8 {[%clk 0:00:56]} 39. Kh2 {[%clk 0:00:40]}  Kg6 {[%clk 0:00:37]} 40. R1a3 {[%clk 0:00:35]}  Rc1 {[%clk 0:00:28]} 41. f4 {[%clk 0:00:25]}  R8c5 {[%clk 0:00:07]} 42. Qd3+ {[%clk 0:00:21]}  Kh6 {[%clk 0:00:06]} 43. Rxa7 {[%clk 0:00:19]}  Rc7 {[%clk 0:00:06]} 44. fxg5+ {[%clk 0:00:18]}  Kxg5 {[%clk 0:00:03]} 45. R3a5+ {[%clk 0:00:15]}  R1c5 {[%clk 0:00:02]} 46. Rxc5+ {[%clk 0:00:09]}  Qxc5 {[%clk 0:00:03]} 47. Rxc7 {[%clk 0:00:05]}  Qxc7+ {[%clk 0:00:04]} 48. Kg1 {[%clk 0:00:05]}  Qc1+ {[%clk 0:00:04]} 49. Kf2 {[%clk 0:00:06]}  Qb2+ {[%clk 0:00:05]} 50. Qe2 {[%clk 0:00:06]}  Qe5 {[%clk 0:00:05]} 51. Qd2 {[%clk 0:00:06]}  Qg3+ {[%clk 0:00:04]} 52. Kf1 {[%clk 0:00:06]}  f5 {[%clk 0:00:05]} 53. e4+ {[%clk 0:00:06]}  Kf6 {[%clk 0:00:03]} 54. Qd4+ {[%clk 0:00:06]}  Kg5 {[%clk 0:00:02]} 55. Qd2+ {[%clk 0:00:05]}  Kf6 {[%clk 0:00:02]} 56. Qd4+ {[%clk 0:00:05]}  Kg5 {[%clk 0:00:03]} 57. Qg7+ {[%clk 0:00:06]}  Kf4 {[%clk 0:00:03]} 58. Qxg3+ {[%clk 0:00:06]}  hxg3 {[%clk 0:00:02]} 59. exf5 {[%clk 0:00:07]}  Kxf5 {[%clk 0:00:03]} 60. Ke2 {[%clk 0:00:08]}  Ke4 {[%clk 0:00:03]} 61. Kd2 {[%clk 0:00:08]}  Kd4 {[%clk 0:00:04]} 62. Ke2 {[%clk 0:00:08]}  Ke4 {[%clk 0:00:04]} 63. h4 {[%clk 0:00:09]}  Kf4 {[%clk 0:00:04]} 64. Kd3 {[%clk 0:00:08]}  Kg4 {[%clk 0:00:04]} 65. Ke3 {[%clk 0:00:09]}  Kxh4 {[%clk 0:00:04]} 66. Kf4 {[%clk 0:00:10]}  Kh5 {[%clk 0:00:05]} 67. Kf3 {[%clk 0:00:09]}  Kg6 {[%clk 0:00:05]} 68. Kg4 {[%clk 0:00:09]}  Kf6 {[%clk 0:00:05]} 69. Kxg3 {[%clk 0:00:09]}  Kg5 {[%clk 0:00:06]} 70. Kh3 {[%clk 0:00:10]}  Kh5 {[%clk 0:00:06]} 71. Kg3 {[%clk 0:00:10]}  Kg5 {[%clk 0:00:07]} 72. Kf3 {[%clk 0:00:11]}  Kf5 {[%clk 0:00:07]} 73. Kf2 {[%clk 0:00:11]}  Kg4 {[%clk 0:00:08]} 74. Kf1 {[%clk 0:00:11]}  Kg3 {[%clk 0:00:09]} 75. Kg1 {[%clk 0:00:11]}  Kg4 {[%clk 0:00:10]} 76. Kh2 {[%clk 0:00:12]}  Kh4 {[%clk 0:00:10]} 77. g3+ {[%clk 0:00:12]}  Kg4 {[%clk 0:00:11]} 78. Kg2 {[%clk 0:00:13]}  Kg5 {[%clk 0:00:11]} 79. Kf3 {[%clk 0:00:13]}  Kf5 {[%clk 0:00:12]} 80. g4+ {[%clk 0:00:14]}  Kg5 {[%clk 0:00:12]} 81. Kg3 {[%clk 0:00:14]}  Kg6 {[%clk 0:00:13]} 82. Kh3 {[%clk 0:00:15]}  Kg5 {[%clk 0:00:14]} 83. Kg3 {[%clk 0:00:16]}  Kg6 {[%clk 0:00:14]} 84. Kh4 {[%clk 0:00:16]}  Kh6 {[%clk 0:00:15]} 85. g5+ {[%clk 0:00:17]}  Kg6 {[%clk 0:00:15]} 86. Kg4 {[%clk 0:00:18]}  Kg7 {[%clk 0:00:15]} 87. Kf4 {[%clk 0:00:19]}  Kg6 {[%clk 0:00:16]} 88. Kg4 {[%clk 0:00:20]}  Kg7 {[%clk 0:00:17]} 89. Kh4 {[%clk 0:00:21]}  Kg6 {[%clk 0:00:18]} 90. Kg4 {[%clk 0:00:21]} 1/2-1/2


[Site "https://www.chess.com"]

[Event "Titled Tuesday Blitz June 1 2021"]
[White "Schmidt, Harald"]
[Black "Novik, Maxim"]
[WhiteFideId "4648358"]
[BlackFideId "4102924"]
[WhiteElo "2356"]
[BlackElo "2406"]
[Result "1-0"]
[Round "10"]
[TimeControl "180+1"]
[Date "2021.06.01"]
[WhiteClock "0:01:23"]
[BlackClock "0:02:03"]

1. e4 {[%clk 0:03:00]}  c6 {[%clk 0:02:59]} 2. Nc3 {[%clk 0:02:51]}  d5 {[%clk 0:02:59]} 3. Nf3 {[%clk 0:02:51]}  dxe4 {[%clk 0:02:58]} 4. Nxe4 {[%clk 0:02:50]}  Nf6 {[%clk 0:02:58]} 5. d3 {[%clk 0:02:42]}  Nxe4 {[%clk 0:02:56]} 6. dxe4 {[%clk 0:02:41]}  Qxd1+ {[%clk 0:02:56]} 7. Kxd1 {[%clk 0:02:41]}  Bg4 {[%clk 0:02:56]} 8. Be3 {[%clk 0:02:40]}  Nd7 {[%clk 0:02:56]} 9. Be2 {[%clk 0:02:34]}  e5 {[%clk 0:02:54]} 10. Nd2 {[%clk 0:02:32]}  Be6 {[%clk 0:02:51]} 11. Bc4 {[%clk 0:02:29]}  Bxc4 {[%clk 0:02:41]} 12. Nxc4 {[%clk 0:02:28]}  O-O-O {[%clk 0:02:41]} 13. Ke2 {[%clk 0:02:27]}  f6 {[%clk 0:02:41]} 14. Rhd1 {[%clk 0:02:22]}  Kc7 {[%clk 0:02:40]} 15. a4 {[%clk 0:02:18]}  Be7 {[%clk 0:02:40]} 16. Bxa7 {[%clk 0:02:08]}  b6 {[%clk 0:02:15]} 17. a5 {[%clk 0:02:07]}  b5 {[%clk 0:02:13]} 18. Bb6+ {[%clk 0:01:50]}  Nxb6 {[%clk 0:02:13]} 19. axb6+ {[%clk 0:01:49]}  Kb8 {[%clk 0:02:13]} 20. Na5 {[%clk 0:01:42]}  Rc8 {[%clk 0:02:03]} 21. Rd7 {[%clk 0:01:23]} 1-0


[Site "https://www.chess.com"]

[Event "Titled Tuesday Blitz June 1 2021"]
[White "Shtyka, Sergey"]
[Black "Erdogdu, Mert"]
[WhiteFideId "4138465"]
[BlackFideId "6301495"]
[WhiteElo "2102"]
[BlackElo "2485"]
[Result "1-0"]
[Round "10"]
[TimeControl "180+1"]
[Date "2021.06.01"]
[WhiteClock "0:01:54"]
[BlackClock "0:00:48"]

1. e4 {[%clk 0:03:00]}  c5 {[%clk 0:02:59]} 2. Nf3 {[%clk 0:03:00]}  d6 {[%clk 0:02:58]} 3. d4 {[%clk 0:03:00]}  cxd4 {[%clk 0:02:58]} 4. Nxd4 {[%clk 0:03:01]}  Nf6 {[%clk 0:02:58]} 5. Nc3 {[%clk 0:03:02]}  a6 {[%clk 0:02:59]} 6. Bd3 {[%clk 0:03:01]}  g6 {[%clk 0:02:57]} 7. O-O {[%clk 0:02:59]}  Bg7 {[%clk 0:02:58]} 8. Nf3 {[%clk 0:02:58]}  O-O {[%clk 0:02:54]} 9. h3 {[%clk 0:02:59]}  Nbd7 {[%clk 0:02:53]} 10. Be3 {[%clk 0:02:59]}  b5 {[%clk 0:02:53]} 11. a3 {[%clk 0:02:58]}  Bb7 {[%clk 0:02:54]} 12. Qd2 {[%clk 0:02:58]}  Rc8 {[%clk 0:02:53]} 13. Bh6 {[%clk 0:02:58]}  Bxh6 {[%clk 0:02:51]} 14. Qxh6 {[%clk 0:02:57]}  Qb6 {[%clk 0:02:28]} 15. Ng5 {[%clk 0:02:53]}  Rfe8 {[%clk 0:02:20]} 16. Kh1 {[%clk 0:02:50]}  Nf8 {[%clk 0:01:59]} 17. f4 {[%clk 0:02:50]}  Nh5 {[%clk 0:01:55]} 18. Rf3 {[%clk 0:02:21]}  f6 {[%clk 0:01:35]} 19. Nxh7 {[%clk 0:02:18]}  Nxh7 {[%clk 0:01:10]} 20. Qxg6+ {[%clk 0:02:16]}  Kh8 {[%clk 0:01:11]} 21. e5 {[%clk 0:01:59]}  f5 {[%clk 0:01:01]} 22. Bxf5 {[%clk 0:01:54]}  Nf8 {[%clk 0:00:48]} 1-0


[Site "https://www.chess.com"]

[Event "Titled Tuesday Blitz June 1 2021"]
[White "Sieciechowicz, Marcin"]
[Black "Shahade, Gregory"]
[WhiteFideId "1130170"]
[BlackFideId "2009064"]
[WhiteElo "2288"]
[BlackElo "2713"]
[Result "1-0"]
[Round "10"]
[TimeControl "180+1"]
[Date "2021.06.01"]
[WhiteClock "0:00:40"]
[BlackClock "0:00:12"]

1. d4 {[%clk 0:03:00]}  Nf6 {[%clk 0:02:59]} 2. c4 {[%clk 0:03:00]}  g6 {[%clk 0:02:59]} 3. Nc3 {[%clk 0:03:00]}  d5 {[%clk 0:03:00]} 4. cxd5 {[%clk 0:02:59]}  Nxd5 {[%clk 0:03:01]} 5. e4 {[%clk 0:02:59]}  Nxc3 {[%clk 0:03:01]} 6. bxc3 {[%clk 0:03:00]}  Bg7 {[%clk 0:03:01]} 7. Bc4 {[%clk 0:03:01]}  c5 {[%clk 0:03:01]} 8. Ne2 {[%clk 0:03:01]}  Nc6 {[%clk 0:03:02]} 9. Be3 {[%clk 0:03:02]}  O-O {[%clk 0:03:01]} 10. O-O {[%clk 0:03:02]}  e6 {[%clk 0:03:01]} 11. Qd2 {[%clk 0:02:59]}  b6 {[%clk 0:03:02]} 12. Rfd1 {[%clk 0:02:57]}  Bb7 {[%clk 0:03:01]} 13. dxc5 {[%clk 0:02:34]}  Qxd2 {[%clk 0:02:49]} 14. Rxd2 {[%clk 0:02:32]}  Ne5 {[%clk 0:02:43]} 15. Bb3 {[%clk 0:02:32]}  Bxe4 {[%clk 0:02:41]} 16. cxb6 {[%clk 0:02:32]}  axb6 {[%clk 0:02:40]} 17. Rad1 {[%clk 0:02:17]}  b5 {[%clk 0:02:32]} 18. Nd4 {[%clk 0:02:16]}  Ng4 {[%clk 0:02:09]} 19. Nxb5 {[%clk 0:01:45]}  Nxe3 {[%clk 0:02:08]} 20. fxe3 {[%clk 0:01:46]}  Rfb8 {[%clk 0:01:37]} 21. c4 {[%clk 0:01:46]}  Bf8 {[%clk 0:01:31]} 22. Kf2 {[%clk 0:01:41]}  Bc5 {[%clk 0:01:23]} 23. g3 {[%clk 0:01:41]}  h5 {[%clk 0:01:22]} 24. Ke2 {[%clk 0:01:38]}  Kg7 {[%clk 0:01:06]} 25. Rf1 {[%clk 0:01:37]}  Rb7 {[%clk 0:01:00]} 26. Rf4 {[%clk 0:01:33]}  Bf5 {[%clk 0:00:51]} 27. Nd6 {[%clk 0:01:26]}  Rba7 {[%clk 0:00:45]} 28. Nxf5+ {[%clk 0:01:25]}  exf5 {[%clk 0:00:39]} 29. e4 {[%clk 0:01:17]}  Re7 {[%clk 0:00:35]} 30. Kf3 {[%clk 0:01:12]}  fxe4+ {[%clk 0:00:29]} 31. Rxe4 {[%clk 0:01:12]}  Rxe4 {[%clk 0:00:29]} 32. Kxe4 {[%clk 0:01:12]}  Re8+ {[%clk 0:00:30]} 33. Kd5 {[%clk 0:00:53]}  Rd8+ {[%clk 0:00:30]} 34. Kxc5 {[%clk 0:00:53]}  Rxd2 {[%clk 0:00:30]} 35. Kb6 {[%clk 0:00:53]}  Rxh2 {[%clk 0:00:18]} 36. c5 {[%clk 0:00:51]}  Kf6 {[%clk 0:00:08]} 37. c6 {[%clk 0:00:51]}  Rh1 {[%clk 0:00:08]} 38. c7 {[%clk 0:00:50]}  Rc1 {[%clk 0:00:09]} 39. Kb7 {[%clk 0:00:48]}  Kg5 {[%clk 0:00:10]} 40. c8=Q {[%clk 0:00:44]}  Rxc8 {[%clk 0:00:10]} 41. Kxc8 {[%clk 0:00:45]}  Kg4 {[%clk 0:00:11]} 42. Bxf7 {[%clk 0:00:40]}  Kxg3 {[%clk 0:00:11]} 43. Bxg6 {[%clk 0:00:40]}  h4 {[%clk 0:00:12]} 44. Bf5 {[%clk 0:00:40]}  h3 {[%clk 0:00:12]} 45. Bxh3 {[%clk 0:00:40]} 1-0


[Site "https://www.chess.com"]

[Event "Titled Tuesday Blitz June 1 2021"]
[White "Sirosh, Ilja"]
[Black "Ozen, Bahadir"]
[WhiteFideId "4500458"]
[BlackFideId "6337058"]
[WhiteElo "2241"]
[BlackElo "2503"]
[Result "0-1"]
[Round "10"]
[TimeControl "180+1"]
[Date "2021.06.01"]
[WhiteClock "0:00:01"]
[BlackClock "0:00:26"]

1. e4 {[%clk 0:03:00]}  c6 {[%clk 0:03:00]} 2. d4 {[%clk 0:02:59]}  d5 {[%clk 0:03:00]} 3. exd5 {[%clk 0:02:57]}  cxd5 {[%clk 0:03:01]} 4. c4 {[%clk 0:02:57]}  Nf6 {[%clk 0:03:01]} 5. Nc3 {[%clk 0:02:57]}  Nc6 {[%clk 0:03:01]} 6. Nf3 {[%clk 0:02:58]}  Bg4 {[%clk 0:03:01]} 7. cxd5 {[%clk 0:02:57]}  Nxd5 {[%clk 0:03:01]} 8. Qb3 {[%clk 0:02:56]}  Bxf3 {[%clk 0:02:57]} 9. gxf3 {[%clk 0:02:55]}  e6 {[%clk 0:02:57]} 10. Qxb7 {[%clk 0:02:48]}  Nxd4 {[%clk 0:02:56]} 11. Bb5+ {[%clk 0:02:44]}  Nxb5 {[%clk 0:02:52]} 12. Qc6+ {[%clk 0:02:43]}  Ke7 {[%clk 0:02:52]} 13. Qc5+ {[%clk 0:02:43]}  Nd6 {[%clk 0:02:49]} 14. Nxd5+ {[%clk 0:02:43]}  Kd7 {[%clk 0:02:46]} 15. O-O {[%clk 0:02:09]}  Qc8 {[%clk 0:02:13]} 16. Qxc8+ {[%clk 0:01:43]}  Rxc8 {[%clk 0:02:13]} 17. Ne3 {[%clk 0:01:39]}  Be7 {[%clk 0:02:09]} 18. Bd2 {[%clk 0:01:38]}  Rhd8 {[%clk 0:02:04]} 19. Rab1 {[%clk 0:01:24]}  Rc6 {[%clk 0:02:02]} 20. b4 {[%clk 0:01:23]}  a6 {[%clk 0:02:01]} 21. a4 {[%clk 0:01:23]}  Rb8 {[%clk 0:01:59]} 22. Rfd1 {[%clk 0:01:21]}  Ke8 {[%clk 0:01:59]} 23. Rb3 {[%clk 0:01:12]}  f6 {[%clk 0:01:28]} 24. Rdb1 {[%clk 0:01:10]}  Kf7 {[%clk 0:01:25]} 25. Kf1 {[%clk 0:01:08]}  Nc4 {[%clk 0:01:22]} 26. Nxc4 {[%clk 0:01:07]}  Rxc4 {[%clk 0:01:23]} 27. a5 {[%clk 0:00:53]}  Rb5 {[%clk 0:01:20]} 28. Ke2 {[%clk 0:00:52]}  Rh4 {[%clk 0:01:11]} 29. Rc1 {[%clk 0:00:45]}  Bxb4 {[%clk 0:01:09]} 30. Bxb4 {[%clk 0:00:44]}  Rhxb4 {[%clk 0:01:10]} 31. Rxb4 {[%clk 0:00:44]}  Rxb4 {[%clk 0:01:11]} 32. Rc6 {[%clk 0:00:45]}  e5 {[%clk 0:01:07]} 33. Rxa6 {[%clk 0:00:44]}  Ra4 {[%clk 0:01:07]} 34. Ra7+ {[%clk 0:00:40]}  Kg6 {[%clk 0:01:06]} 35. a6 {[%clk 0:00:41]}  h5 {[%clk 0:01:05]} 36. h3 {[%clk 0:00:36]}  Kh6 {[%clk 0:01:03]} 37. Kd3 {[%clk 0:00:33]}  g6 {[%clk 0:00:56]} 38. Kc3 {[%clk 0:00:31]}  Ra3+ {[%clk 0:00:56]} 39. Kb4 {[%clk 0:00:31]}  Ra1 {[%clk 0:00:54]} 40. Kb5 {[%clk 0:00:28]}  Rb1+ {[%clk 0:00:49]} 41. Kc6 {[%clk 0:00:27]}  Ra1 {[%clk 0:00:50]} 42. Kb6 {[%clk 0:00:25]}  Rb1+ {[%clk 0:00:49]} 43. Kc7 {[%clk 0:00:24]}  Ra1 {[%clk 0:00:49]} 44. Kb7 {[%clk 0:00:17]}  Rb1+ {[%clk 0:00:49]} 45. Ka8 {[%clk 0:00:17]}  Ra1 {[%clk 0:00:49]} 46. Kb7 {[%clk 0:00:17]}  Rb1+ {[%clk 0:00:49]} 47. Kc6 {[%clk 0:00:17]}  Ra1 {[%clk 0:00:49]} 48. Ra8 {[%clk 0:00:16]}  Kh7 {[%clk 0:00:43]} 49. Kb7 {[%clk 0:00:13]}  Rb1+ {[%clk 0:00:42]} 50. Ka7 {[%clk 0:00:14]}  Rb3 {[%clk 0:00:33]} 51. Rb8 {[%clk 0:00:13]}  Rxf3 {[%clk 0:00:33]} 52. Rb7+ {[%clk 0:00:09]}  Kh6 {[%clk 0:00:33]} 53. Kb8 {[%clk 0:00:10]}  Rxf2 {[%clk 0:00:30]} 54. a7 {[%clk 0:00:10]}  Ra2 {[%clk 0:00:31]} 55. a8=Q {[%clk 0:00:10]}  Rxa8+ {[%clk 0:00:32]} 56. Kxa8 {[%clk 0:00:11]}  g5 {[%clk 0:00:31]} 57. Re7 {[%clk 0:00:07]}  g4 {[%clk 0:00:31]} 58. hxg4 {[%clk 0:00:07]}  hxg4 {[%clk 0:00:32]} 59. Kb7 {[%clk 0:00:07]}  g3 {[%clk 0:00:32]} 60. Re8 {[%clk 0:00:08]}  Kg5 {[%clk 0:00:29]} 61. Kc6 {[%clk 0:00:07]}  Kf4 {[%clk 0:00:28]} 62. Kd5 {[%clk 0:00:07]}  Kf3 {[%clk 0:00:27]} 63. Ke6 {[%clk 0:00:05]}  g2 {[%clk 0:00:28]} 64. Rg8 {[%clk 0:00:04]}  e4 {[%clk 0:00:27]} 65. Kxf6 {[%clk 0:00:05]}  e3 {[%clk 0:00:27]} 66. Kf5 {[%clk 0:00:02]}  e2 {[%clk 0:00:27]} 67. Rg4 {[%clk 0:00:01]}  e1=Q {[%clk 0:00:26]} 68. Rf4+ {[%clk 0:00:01]}  Kg3 {[%clk 0:00:26]} 0-1


[Site "https://www.chess.com"]

[Event "Titled Tuesday Blitz June 1 2021"]
[White "Siva Mahadevan"]
[Black "Szente Varga, Fruzsina"]
[WhiteFideId "25043153"]
[BlackFideId "712264"]
[WhiteElo "2203"]
[BlackElo "2106"]
[Result "1-0"]
[Round "10"]
[TimeControl "180+1"]
[Date "2021.06.01"]
[WhiteClock "0:00:20"]
[BlackClock "0:00:09"]

1. e4 {[%clk 0:03:00]}  e5 {[%clk 0:02:59]} 2. Nf3 {[%clk 0:03:01]}  Nc6 {[%clk 0:02:59]} 3. Bb5 {[%clk 0:03:01]}  a6 {[%clk 0:02:59]} 4. Ba4 {[%clk 0:03:02]}  Nf6 {[%clk 0:02:59]} 5. O-O {[%clk 0:03:02]}  Be7 {[%clk 0:03:00]} 6. Re1 {[%clk 0:03:03]}  b5 {[%clk 0:03:00]} 7. Bb3 {[%clk 0:03:03]}  O-O {[%clk 0:03:01]} 8. d4 {[%clk 0:03:03]}  exd4 {[%clk 0:02:43]} 9. e5 {[%clk 0:03:01]}  Ne8 {[%clk 0:02:43]} 10. c3 {[%clk 0:03:00]}  dxc3 {[%clk 0:02:38]} 11. Nxc3 {[%clk 0:03:01]}  d6 {[%clk 0:02:38]} 12. Qd5 {[%clk 0:02:02]}  Bb7 {[%clk 0:02:27]} 13. e6 {[%clk 0:02:00]}  fxe6 {[%clk 0:02:00]} 14. Qxe6+ {[%clk 0:01:57]}  Kh8 {[%clk 0:02:01]} 15. Nd5 {[%clk 0:01:58]}  Bf6 {[%clk 0:01:55]} 16. Be3 {[%clk 0:01:40]}  Ne5 {[%clk 0:01:35]} 17. Nxe5 {[%clk 0:01:32]}  Bxe5 {[%clk 0:01:36]} 18. f4 {[%clk 0:01:17]}  Bxb2 {[%clk 0:01:32]} 19. Rab1 {[%clk 0:01:17]}  Bf6 {[%clk 0:01:31]} 20. Rbd1 {[%clk 0:01:13]}  Rb8 {[%clk 0:00:35]} 21. Bf2 {[%clk 0:01:04]}  c5 {[%clk 0:00:30]} 22. g4 {[%clk 0:00:56]}  c4 {[%clk 0:00:30]} 23. Bc2 {[%clk 0:00:57]}  Bxd5 {[%clk 0:00:28]} 24. Qxd5 {[%clk 0:00:57]}  Be7 {[%clk 0:00:29]} 25. Qh5 {[%clk 0:00:48]}  Nf6 {[%clk 0:00:28]} 26. Qh3 {[%clk 0:00:49]}  h6 {[%clk 0:00:22]} 27. g5 {[%clk 0:00:46]}  Ng8 {[%clk 0:00:22]} 28. Re6 {[%clk 0:00:36]}  Bxg5 {[%clk 0:00:21]} 29. fxg5 {[%clk 0:00:35]}  Qxg5+ {[%clk 0:00:22]} 30. Bg3 {[%clk 0:00:33]}  d5 {[%clk 0:00:21]} 31. Kh1 {[%clk 0:00:31]}  Rbd8 {[%clk 0:00:20]} 32. Rg1 {[%clk 0:00:26]}  d4 {[%clk 0:00:20]} 33. Be5 {[%clk 0:00:25]}  Qxg1+ {[%clk 0:00:16]} 34. Kxg1 {[%clk 0:00:26]}  Nf6 {[%clk 0:00:16]} 35. Bxf6 {[%clk 0:00:25]}  Kg8 {[%clk 0:00:13]} 36. Qg4 {[%clk 0:00:23]}  Rxf6 {[%clk 0:00:12]} 37. Rxf6 {[%clk 0:00:24]}  d3 {[%clk 0:00:13]} 38. Bd1 {[%clk 0:00:21]}  c3 {[%clk 0:00:13]} 39. Rg6 {[%clk 0:00:20]}  Kf8 {[%clk 0:00:09]} 40. Rxg7 {[%clk 0:00:20]}  c2 {[%clk 0:00:09]} 41. Rg8+ {[%clk 0:00:20]}  Ke7 {[%clk 0:00:09]} 42. Qg7+ {[%clk 0:00:19]}  Ke6 {[%clk 0:00:10]} 43. Bg4+ {[%clk 0:00:19]}  Kd5 {[%clk 0:00:08]} 44. Rxd8+ {[%clk 0:00:20]}  Kc4 {[%clk 0:00:09]} 45. Qd4# {[%clk 0:00:20]} 1-0


[Site "https://www.chess.com"]